fUST/lending_fUST_20250204
["ID","MTS","AMOUNT","RATE_DAILY","PERIOD"]
[351571465,1738629052198,-500.0,0.00016712,2]
[351571466,1738629052210,-510.3813795,0.00016712,2]
[351571467,1738629052219,-503.82382776,0.00016712,2]
[351571468,1738629052229,-500.0,0.00016712,2]
[351571469,1738629052238,-500.0,0.00016712,2]
[351571470,1738629052247,-151.0,0.00016712,2]
[351571471,1738629052256,-987.17,0.00016712,2]
[351571472,1738629052266,-151.0,0.00016712,2]
[351571473,1738629052275,-500.0,0.00016712,2]
[351571474,1738629052284,-500.0,0.00016712,2]
[351571475,1738629052294,-7747.16,0.00016712,2]
[351571476,1738629052303,-500.0,0.00016712,2]
[351571477,1738629052312,-500.0,0.00016712,2]
[351571478,1738629052322,-500.0,0.00016712,2]
[351571479,1738629052331,-500.0,0.00016712,2]
[351571480,1738629052340,-506.37141239,0.00016712,2]
[351571481,1738629052349,-506.34967255,0.00016712,2]
[351571482,1738629052359,-1269.11,0.00016712,2]
[351571483,1738629052368,-500.0,0.00016712,2]
[351571484,1738629052377,-151.0,0.00016712,2]
[351571485,1738629052386,-515.72813484,0.00016712,2]
[351571486,1738629052395,-500.0,0.00016712,2]
[351571487,1738629052406,-573.06,0.00016712,2]
[351571488,1738629052418,-2692.27,0.00016712,2]
[351571489,1738629052428,-1903.15,0.00016712,2]
[351571490,1738629052437,-500.0,0.00016712,2]
[351571491,1738629052447,-500.0,0.00016712,2]
[351571492,1738629052458,-500.0,0.00016712,2]
[351571493,1738629052468,-823.04,0.00016712,2]
[351571494,1738629052477,-500.0,0.00016712,2]
[351571495,1738629052487,-1113.82,0.00016712,2]
[351571496,1738629052497,-2230.2,0.00016712,2]
[351571497,1738629052506,-500.0,0.00016712,2]
[351571498,1738629052516,-765.19,0.00016712,2]
[351571499,1738629052525,-500.0,0.00016712,2]
[351571500,1738629052534,-500.0,0.00016712,2]
[351571501,1738629052543,-151.0,0.00016712,2]
[351571502,1738629052552,-500.0,0.00016712,2]
[351571503,1738629052562,-500.0,0.00016712,2]
[351571504,1738629052571,-500.0,0.00016712,2]
[351571505,1738629052580,-151.0,0.00016712,2]
[351571506,1738629052590,-1213.47,0.00016712,2]
[351571507,1738629052599,-2444.02,0.00016712,2]
[351571508,1738629052609,-423.43951563,0.00016712,2]
[351571509,1738629052618,-500.0,0.00016712,2]
[351571510,1738629052628,-500.0,0.00016712,2]
[351571511,1738629052637,-1293.7,0.00016712,2]
[351571512,1738629052646,-8227.64,0.00016712,2]
[351571513,1738629052659,-1964.06,0.00016712,2]
[351571514,1738629052671,-500.0,0.00016712,2]
[351571515,1738629052680,-825.06,0.00016712,2]
[351571516,1738629052689,-500.0,0.00016712,2]
[351571517,1738629052699,-4326.11,0.00016712,2]
[351571518,1738629052711,-500.0,0.00016712,2]
[351571519,1738629052720,-151.0,0.00016712,2]
[351571520,1738629052730,-1871.91,0.00016712,2]
[351571521,1738629052740,-500.0,0.00016712,2]
[351571522,1738629052749,-589.07,0.00016712,2]
[351571523,1738629052758,-500.0,0.00016712,2]
[351571524,1738629052773,-151.0,0.00016712,2]
[351571525,1738629052785,-151.0,0.00016712,2]
[351571526,1738629052794,-500.0,0.00016712,2]
[351571527,1738629052803,-257.81925144,0.00016712,2]
[351571528,1738629052812,-1026.26,0.00016712,2]
[351571529,1738629052821,-1046.66,0.00016712,2]
[351571530,1738629052831,-1106.76,0.00016712,2]
[351571531,1738629052841,-18113.43,0.00016712,2]
[351571532,1738629052852,-151.0,0.00016712,2]
[351571533,1738629052868,-151.0,0.00016712,2]
[351571534,1738629052877,-151.0,0.00016712,2]
[351571535,1738629052887,-151.0,0.00016712,2]
[351571536,1738629052897,-1937.27,0.00016712,2]
[351571537,1738629052907,-1303.61,0.00016712,2]
[351571538,1738629052917,-152.609282,0.00016712,2]
[351571539,1738629052927,-500.0,0.00016712,2]
[351571540,1738629052936,-500.0,0.00016712,2]
[351571541,1738629052947,-686.12,0.00016712,2]
[351571542,1738629052958,-1055.99,0.00016712,2]
[351571543,1738629052968,-1012.54,0.00016712,2]
[351571544,1738629052978,-500.0,0.00016712,2]
[351571545,1738629052987,-555.14362267,0.00016712,2]
[351571546,1738629052997,-492.96476629,0.00016712,2]
[351571547,1738629053006,-500.0,0.00016712,2]
[351571548,1738629053015,-500.0,0.00016712,2]
[351571549,1738629053025,-500.0,0.00016712,2]
[351571550,1738629053034,-500.0,0.00016712,2]
[351571551,1738629053044,-2684.78,0.00016712,2]
[351571552,1738629053053,-254.375619,0.00016712,2]
[351571553,1738629053063,-500.0,0.00016712,2]
[351571554,1738629053072,-500.0,0.00016712,2]
[351571555,1738629053081,-732.58,0.00016712,2]
[351571556,1738629053091,-500.0,0.00016712,2]
[351571557,1738629053100,-500.0,0.00016712,2]
[351571558,1738629053110,-500.0,0.00016712,2]
[351571559,1738629053119,-1307.33,0.00016712,2]
[351571560,1738629053128,-500.0,0.00016712,2]
[351571561,1738629053138,-4489.35,0.00016712,2]
[351571562,1738629053147,-500.0,0.00016712,2]
[351571563,1738629053157,-355.0,0.0001672,2]
[351571564,1738629053166,-270.5445845,0.00016731,2]
[351571565,1738629053176,-261.18866223,0.00016749,2]
[351571566,1738629053186,-180.69272768,0.00016784,2]
[351571567,1738629053195,-215.6590378,0.00016795,2]
[351571568,1738629053204,-385.3137431,0.00016795,2]
[351571569,1738629053216,-153.0,0.00016795,2]
[351571570,1738629053225,-415.3014518,0.00016795,2]
[351571571,1738629053234,-153.0,0.00016795,2]
[351571572,1738629053244,-153.0,0.00016795,2]
[351571573,1738629053253,-153.0,0.00016795,2]
[351571574,1738629053262,-153.0,0.00016795,2]
[351571575,1738629053272,-153.0,0.00016795,2]
[351571576,1738629053281,-797.35323886,0.000168,2]
[351571577,1738629053290,-151.0,0.000168,2]
[351571578,1738629053300,-151.0,0.000168,2]
[351571579,1738629053309,-636.583,0.00016817,2]
[351571580,1738629053318,-612.79664494,0.00016849,2]
[351571581,1738629053327,-500.0,0.00016849,2]
[351571582,1738629053336,-500.0,0.00016849,2]
[351571583,1738629053346,-500.0,0.00016849,2]
[351571584,1738629053355,-500.0,0.00016849,2]
[351571585,1738629053364,-500.0,0.00016849,2]
[351571586,1738629053373,-500.0,0.00016849,2]
[351571587,1738629053383,-500.0,0.00016849,2]
[351571588,1738629053391,-224.51675645,0.00016849,2]
[351571589,1738629053401,-500.0,0.00016849,2]
[351571590,1738629053416,-500.0,0.00016849,2]
[351571591,1738629053425,-500.0,0.00016849,2]
[351571592,1738629053434,-812.23,0.00016849,2]
[351571593,1738629053525,-500.0,0.00016849,2]
[351571594,1738629053535,-500.0,0.00016849,2]
[351571595,1738629053544,-500.0,0.00016849,2]
[351571596,1738629053553,-500.0,0.00016849,2]
[351571597,1738629053562,-500.0,0.00016849,2]
[351571598,1738629053571,-500.0,0.00016849,2]
[351571599,1738629053581,-500.0,0.00016849,2]
[351571600,1738629053591,-151.0,0.00016849,2]
[351571601,1738629053601,-1019.33,0.00016849,2]
[351571602,1738629053611,-500.0,0.00016849,2]
[351571603,1738629053620,-241.311326,0.00016849,2]
[351571604,1738629053629,-500.0,0.00016849,2]
[351571605,1738629053639,-241.311326,0.00016849,2]
[351571606,1738629053648,-509.41,0.00016849,2]
[351571607,1738629053657,-361.611704,0.00016849,2]
[351571608,1738629053666,-500.0,0.00016849,2]
[351571609,1738629053676,-1015.33,0.00016849,2]
[351571610,1738629053685,-361.611704,0.00016849,2]
[351571611,1738629053694,-500.0,0.00016849,2]
[351571612,1738629053704,-500.0,0.00016849,2]
[351571613,1738629053715,-500.0,0.00016849,2]
[351571614,1738629053724,-500.0,0.00016849,2]
[351571615,1738629053734,-694.5,0.00016849,2]
[351571616,1738629053743,-500.0,0.00016849,2]
[351571617,1738629053753,-1630.59,0.00016849,2]
[351571618,1738629053762,-500.0,0.00016849,2]
[351571619,1738629053771,-500.0,0.00016849,2]
[351571620,1738629053781,-500.0,0.00016849,2]
[351571621,1738629053790,-500.0,0.00016849,2]
[351571622,1738629053799,-500.0,0.00016849,2]
[351571623,1738629053809,-500.0,0.00016849,2]
[351571624,1738629053818,-456.88314076,0.00016849,2]
[351571625,1738629053828,-500.0,0.00016849,2]
[351571626,1738629053837,-508.89471112,0.00016849,2]
[351571627,1738629053847,-151.0,0.00016849,2]
[351571628,1738629053856,-500.0,0.00016849,2]
[351571629,1738629053866,-500.0,0.00016849,2]
[351571630,1738629053875,-645.9,0.00016849,2]
[351571631,1738629053884,-151.0,0.00016849,2]
[351571632,1738629053894,-151.0,0.00016849,2]
[351571633,1738629053903,-424.73436734,0.00016849,2]
[351571634,1738629053913,-627.7321185,0.00016849,2]
[351571635,1738629053922,-394.44286205,0.00016849,2]
[351571636,1738629053932,-500.0,0.00016849,2]
[351571637,1738629053941,-500.0,0.00016849,2]
[351571638,1738629053950,-579.49,0.00016849,2]
[351571639,1738629053961,-322.56618396,0.00016849,2]
[351571640,1738629053970,-500.0,0.00016849,2]
[351571641,1738629053980,-500.0,0.00016849,2]
[351571642,1738629053989,-500.0,0.00016849,2]
[351571643,1738629053999,-500.0,0.00016849,2]
[351571644,1738629054008,-492.73329848,0.00016849,2]
[351571645,1738629054017,-151.0,0.00016849,2]
[351571646,1738629054027,-151.0,0.00016849,2]
[351571647,1738629054036,-987.17,0.00016849,2]
[351571648,1738629054046,-151.0,0.00016849,2]
[351571649,1738629054056,-7747.16,0.00016849,2]
[351571650,1738629054065,-500.0,0.00016849,2]
[351571651,1738629054074,-500.0,0.00016849,2]
[351571652,1738629054084,-1269.11,0.00016849,2]
[351571653,1738629054093,-242.107752,0.00016849,2]
[351571654,1738629054103,-573.06,0.00016849,2]
[351571655,1738629054119,-2692.27,0.00016849,2]
[351571656,1738629054129,-1903.15,0.00016849,2]
[351571657,1738629054139,-500.0,0.00016849,2]
[351571658,1738629054149,-500.0,0.00016849,2]
[351571659,1738629054159,-500.0,0.00016849,2]
[351571660,1738629054169,-823.04,0.00016849,2]
[351571661,1738629054179,-1113.82,0.00016849,2]
[351571662,1738629054189,-2230.2,0.00016849,2]
[351571663,1738629054199,-500.0,0.00016849,2]
[351571664,1738629054211,-765.19,0.00016849,2]
[351571665,1738629054221,-500.0,0.00016849,2]
[351571666,1738629054231,-164.4,0.00016849,2]
[351571667,1738629054241,-151.0,0.00016849,2]
[351571668,1738629054250,-500.0,0.00016849,2]
[351571669,1738629054261,-500.0,0.00016849,2]
[351571670,1738629054271,-500.0,0.00016849,2]
[351571671,1738629054280,-192.821954,0.00016849,2]
[351571672,1738629054290,-1213.47,0.00016849,2]
[351571673,1738629054300,-2444.02,0.00016849,2]
[351571674,1738629054309,-547.18183605,0.00016849,2]
[351571675,1738629054319,-500.0,0.00016849,2]
[351571676,1738629054330,-1293.7,0.00016849,2]
[351571677,1738629054339,-8227.64,0.00016849,2]
[351571678,1738629054348,-1964.06,0.00016849,2]
[351571679,1738629054358,-500.0,0.00016849,2]
[351571680,1738629054368,-825.06,0.00016849,2]
[351571681,1738629054378,-500.0,0.00016849,2]
[351571682,1738629054387,-4326.11,0.00016849,2]
[351571683,1738629054397,-500.0,0.00016849,2]
[351571684,1738629054408,-151.0,0.00016849,2]
[351571685,1738629054421,-151.0,0.00016849,2]
[351571686,1738629054431,-1871.91,0.00016849,2]
[351571687,1738629054440,-589.07,0.00016849,2]
[351571688,1738629054450,-151.0,0.00016849,2]
[351571689,1738629054464,-500.0,0.00016849,2]
[351571690,1738629054473,-1026.26,0.00016849,2]
[351571691,1738629054484,-1046.66,0.00016849,2]
[351571692,1738629054494,-1106.76,0.00016849,2]
[351571693,1738629054504,-18113.43,0.00016849,2]
[351571694,1738629054514,-151.0,0.00016849,2]
[351571695,1738629054524,-151.0,0.00016849,2]
[351571696,1738629054533,-1937.27,0.00016849,2]
[351571697,1738629054543,-1303.61,0.00016849,2]
[351571698,1738629054551,-500.0,0.00016849,2]
[351571699,1738629054561,-500.0,0.00016849,2]
[351571700,1738629054570,-686.12,0.00016849,2]
[351571701,1738629054581,-1055.99,0.00016849,2]
[351571702,1738629054590,-1012.54,0.00016849,2]
[351571703,1738629054599,-500.0,0.00016849,2]
[351571704,1738629054608,-500.0,0.00016849,2]
[351571705,1738629054618,-500.0,0.00016849,2]
[351571706,1738629054626,-500.0,0.00016849,2]
[351571707,1738629054636,-2684.78,0.00016849,2]
[351571708,1738629054646,-500.0,0.00016849,2]
[351571709,1738629054655,-500.0,0.00016849,2]
[351571710,1738629054664,-732.58,0.00016849,2]
[351571711,1738629054673,-500.0,0.00016849,2]
[351571712,1738629054682,-500.0,0.00016849,2]
[351571713,1738629054692,-1307.33,0.00016849,2]
[351571714,1738629054701,-500.0,0.00016849,2]
[351571715,1738629054711,-4489.35,0.00016849,2]
[351571716,1738629054721,-2222.33244921,0.00016886,2]
[351571717,1738629054731,-261.18866223,0.00016886,2]
[351571718,1738629054740,-420.0,0.00016887,2]
[351571719,1738629054749,-537.0,0.00016898,2]
[351571720,1738629054758,-1994.0,0.00016898,2]
[351571721,1738629054767,-2298.0,0.00016898,2]
[351571722,1738629054777,-396.0,0.00016898,2]
[351571723,1738629054787,-151.98623375,0.00016899,2]
[351571724,1738629054796,-5001.99523034,0.000169,2]
[351571725,1738629054805,-10511.8912844,0.000169,2]
[351571726,1738629054815,-151.0,0.000169,2]
[351571727,1738629054824,-151.0,0.000169,2]
[351571728,1738629054833,-361.611704,0.000169,2]
[351571729,1738629054842,-361.611704,0.000169,2]
[351571730,1738629054851,-151.0,0.000169,2]
[351571731,1738629054860,-151.0,0.000169,2]
[351571732,1738629054869,-151.0,0.000169,2]
[351571733,1738629054879,-151.0,0.000169,2]
[351571734,1738629054888,-941.78336019,0.00016944,2]
[351571735,1738629054897,-150.628,0.00016958,2]
[351571736,1738629054907,-153.51507434,0.00016959,2]
[351571737,1738629054915,-500.0,0.00016973,2]
[351571738,1738629054925,-500.0,0.00016973,2]
[351571739,1738629054934,-33289.96257747,0.00016985,5]
[351571740,1738629110087,262.508698,0.00013973,2]
[351571754,1738629921057,258.83954,0.00013973,2]
[351571803,1738630232434,-261.18866223,0.00016338,2]
[351571805,1738630232444,-154.87948092,0.00016338,2]
[351571808,1738630232454,-300.0,0.00016436,2]
[351571810,1738630232463,-499.47064665,0.00016437,2]
[351571813,1738630232487,-0.52935335,0.00016437,2]
[351571815,1738630232496,-500.0,0.00016437,2]
[351571817,1738630232508,-337.79006795,0.00016437,2]
[351571856,1738630238284,-162.20993205,0.00016437,2]
[351571857,1738630238294,-500.0,0.00016437,2]
[351571859,1738630238303,-500.0,0.00016437,2]
[351571860,1738630238313,-500.0,0.00016437,2]
[351571861,1738630238323,-500.0,0.00016437,2]
[351571862,1738630238332,-500.0,0.00016437,2]
[351571863,1738630238341,-500.0,0.00016437,2]
[351571864,1738630238350,-170.65683806,0.00016437,2]
[351571865,1738630238359,-500.0,0.00016437,2]
[351571866,1738630238368,-500.0,0.00016437,2]
[351571867,1738630238377,-500.0,0.00016437,2]
[351571868,1738630238387,-500.0,0.00016437,2]
[351571869,1738630238396,-500.0,0.00016437,2]
[351571870,1738630238406,-500.0,0.00016437,2]
[351571871,1738630238415,-500.0,0.00016437,2]
[351571872,1738630238424,-500.0,0.00016437,2]
[351571873,1738630238433,-500.0,0.00016437,2]
[351571875,1738630238446,-500.0,0.00016437,2]
[351571877,1738630238455,-500.0,0.00016437,2]
[351571879,1738630238464,-500.0,0.00016437,2]
[351571881,1738630238474,-500.0,0.00016437,2]
[351571882,1738630238483,-344.3815011,0.00016437,2]
[351571883,1738630238492,-500.0,0.00016437,2]
[351571884,1738630238502,-500.0,0.00016437,2]
[351571885,1738630238511,-500.0,0.00016437,2]
[351571886,1738630238520,-486.17443972,0.00016437,2]
[351571887,1738630238529,-500.0,0.00016437,2]
[351571888,1738630238539,-500.0,0.00016437,2]
[351571889,1738630238548,-500.0,0.00016437,2]
[351571890,1738630238558,-500.0,0.00016437,2]
[351571891,1738630238567,-500.0,0.00016437,2]
[351571892,1738630238576,-500.0,0.00016437,2]
[351571893,1738630238586,-500.0,0.00016437,2]
[351571894,1738630238595,-500.0,0.00016437,2]
[351571895,1738630238605,-500.0,0.00016437,2]
[351571896,1738630238614,-500.0,0.00016437,2]
[351571897,1738630238623,-500.0,0.00016437,2]
[351571898,1738630238633,-500.0,0.00016437,2]
[351571899,1738630238642,-500.0,0.00016437,2]
[351571900,1738630238652,-500.0,0.00016437,2]
[351571901,1738630238661,-500.0,0.00016437,2]
[351571902,1738630238670,-500.0,0.00016437,2]
[351571903,1738630238679,-500.0,0.00016437,2]
[351571904,1738630238689,-500.0,0.00016437,2]
[351571905,1738630238701,-500.0,0.00016437,2]
[351571906,1738630238711,-500.0,0.00016437,2]
[351571907,1738630238720,-500.0,0.00016437,2]
[351571908,1738630238729,-500.0,0.00016437,2]
[351571909,1738630238739,-500.0,0.00016437,2]
[351571910,1738630238748,-500.0,0.00016437,2]
[351571911,1738630238758,-500.0,0.00016437,2]
[351571912,1738630238767,-461.11396247,0.00016437,2]
[351571913,1738630238778,-500.0,0.00016437,2]
[351571914,1738630238787,-500.0,0.00016437,2]
[351571915,1738630238797,-500.0,0.00016437,2]
[351571916,1738630238807,-591.69,0.00016437,2]
[351571917,1738630238818,-151.345106,0.00016438,2]
[351571918,1738630238836,-467.18246229,0.00016438,2]
[351571919,1738630238846,-252.77018107,0.00016438,2]
[351571920,1738630238857,-500.0,0.00016438,2]
[351571921,1738630238866,-381.66559081,0.00016438,2]
[351571922,1738630238875,-503.67560134,0.00016438,2]
[351571923,1738630238884,-501.71353587,0.00016438,2]
[351571924,1738630238893,-312.51929985,0.00016438,2]
[351571925,1738630238905,-500.0,0.00016438,2]
[351571926,1738630238914,-500.0,0.00016438,2]
[351571927,1738630238923,-500.0,0.00016438,2]
[351571928,1738630238932,-500.82034286,0.00016438,2]
[351571929,1738630238942,-500.0,0.00016438,2]
[351571930,1738630238952,-500.0,0.00016438,2]
[351571931,1738630238962,-500.0,0.00016438,2]
[351571932,1738630238971,-500.0,0.00016438,2]
[351571933,1738630238980,-501.74563648,0.00016438,2]
[351571934,1738630238989,-500.0,0.00016438,2]
[351571935,1738630238999,-500.0,0.00016438,2]
[351571936,1738630239008,-500.0,0.00016438,2]
[351571937,1738630239018,-502.46057485,0.00016438,2]
[351571938,1738630239026,-602.44756702,0.00016438,2]
[351571939,1738630239035,-500.0,0.00016438,2]
[351571940,1738630239046,-502.35900013,0.00016438,2]
[351571941,1738630239055,-500.0,0.00016438,2]
[351571942,1738630239064,-500.85088758,0.00016438,2]
[351571943,1738630239074,-500.0,0.00016438,2]
[351571944,1738630239083,-500.0,0.00016438,2]
[351571945,1738630239092,-500.0,0.00016438,2]
[351571946,1738630239102,-500.0,0.00016438,2]
[351571947,1738630239111,-500.0,0.00016438,2]
[351571948,1738630239120,-500.0,0.00016438,2]
[351571949,1738630239129,-501.42874147,0.00016438,2]
[351571950,1738630239138,-500.0,0.00016438,2]
[351571951,1738630239148,-500.0,0.00016438,2]
[351571952,1738630239158,-500.0,0.00016438,2]
[351571953,1738630239167,-500.0,0.00016438,2]
[351571954,1738630239177,-500.0,0.00016438,2]
[351571955,1738630239186,-500.0,0.00016438,2]
[351571956,1738630239198,-504.02648081,0.00016438,2]
[351571957,1738630239207,-246.3255647,0.00016438,2]
[351571958,1738630239216,-500.0,0.00016438,2]
[351571959,1738630239225,-502.97137495,0.00016438,2]
[351571960,1738630239234,-500.0,0.00016438,2]
[351571961,1738630239244,-238.52019432,0.00016438,2]
[351571962,1738630239253,-500.0,0.00016438,2]
[351571963,1738630239262,-500.0,0.00016438,2]
[351571964,1738630239271,-507.40489138,0.00016438,2]
[351571965,1738630239280,-500.0,0.00016438,2]
[351571966,1738630239289,-500.0,0.00016438,2]
[351571967,1738630239299,-500.0,0.00016438,5]
[351571968,1738630239308,-500.0,0.00016438,2]
[351571969,1738630239317,-500.0,0.00016438,2]
[351571970,1738630239327,-500.0,0.00016438,2]
[351571971,1738630239336,-500.0,0.00016438,2]
[351571972,1738630239345,-500.0,0.00016438,2]
[351571973,1738630239355,-500.0,0.00016438,2]
[351571974,1738630239364,-500.0,0.00016438,2]
[351571975,1738630239374,-500.0,0.00016438,2]
[351571976,1738630239383,-500.0,0.00016438,2]
[351571977,1738630239392,-500.0,0.00016438,2]
[351571978,1738630239402,-253.01218903,0.00016438,2]
[351571979,1738630239411,-500.0,0.00016438,2]
[351571980,1738630239420,-500.0,0.00016438,2]
[351571981,1738630239430,-502.0607413,0.00016438,2]
[351571982,1738630239439,-500.0,0.00016438,2]
[351571983,1738630239453,-500.0,0.00016438,2]
[351571984,1738630239462,-500.0,0.00016438,2]
[351571985,1738630239471,-506.93606848,0.00016438,2]
[351571986,1738630239481,-500.0,0.00016438,2]
[351571987,1738630239490,-502.56340079,0.00016438,2]
[351571988,1738630239499,-500.0,0.00016438,2]
[351571989,1738630239509,-262.73537653,0.00016438,2]
[351571990,1738630239519,-500.0,0.00016438,2]
[351571991,1738630239528,-557.6352224,0.00016438,2]
[351571992,1738630239537,-500.0,0.00016438,2]
[351571993,1738630239547,-500.0,0.00016438,2]
[351571994,1738630239557,-500.0,0.00016438,2]
[351571995,1738630239567,-500.0,0.00016438,2]
[351571996,1738630239577,-500.0,0.00016438,2]
[351571997,1738630239587,-500.0,0.00016438,2]
[351571998,1738630239597,-557.74897486,0.00016438,2]
[351571999,1738630239607,-501.63229707,0.00016438,2]
[351572000,1738630239616,-500.0,0.00016438,2]
[351572001,1738630239626,-502.58621,0.00016438,2]
[351572002,1738630239635,-500.0,0.00016438,2]
[351572003,1738630239645,-500.0,0.00016438,2]
[351572004,1738630239655,-500.0,0.00016438,2]
[351572005,1738630239664,-239.95975602,0.00016438,2]
[351572006,1738630239674,-500.0,0.00016438,2]
[351572007,1738630239683,-503.56454569,0.00016438,2]
[351572008,1738630239696,-500.0,0.00016438,2]
[351572009,1738630239705,-500.0,0.00016438,2]
[351572010,1738630239715,-500.0,0.00016438,2]
[351572011,1738630239725,-500.0,0.00016438,2]
[351572012,1738630239734,-500.0,0.00016438,2]
[351572013,1738630239743,-500.0,0.00016438,2]
[351572014,1738630239753,-500.0,0.00016438,2]
[351572015,1738630239763,-500.0,0.00016438,2]
[351572016,1738630239772,-500.0,0.00016438,2]
[351572017,1738630239782,-500.0,0.00016438,2]
[351572018,1738630239792,-500.0,0.00016438,2]
[351572019,1738630239801,-500.0,0.00016438,2]
[351572020,1738630239811,-548.82713053,0.00016438,2]
[351572021,1738630239821,-500.0,0.00016438,2]
[351572024,1738630239961,-500.0,0.00016438,2]
[351572026,1738630239972,-647.18874231,0.00016438,2]
[351572028,1738630239982,-500.0,0.00016438,2]
[351572030,1738630239992,-500.0,0.00016438,2]
[351572032,1738630240001,-500.0,0.00016438,2]
[351572033,1738630240011,-500.0,0.00016438,2]
[351572034,1738630240020,-500.0,0.00016438,2]
[351572035,1738630240030,-891.91,0.00016438,2]
[351572036,1738630240039,-500.0,0.00016438,2]
[351572037,1738630240049,-322.76139914,0.00016438,2]
[351572038,1738630240058,-500.0,0.00016438,2]
[351572039,1738630240068,-500.0,0.00016438,2]
[351572040,1738630240077,-500.0,0.00016438,2]
[351572042,1738630240086,-500.0,0.00016438,2]
[351572043,1738630240096,-500.0,0.00016438,2]
[351572044,1738630240105,-500.0,0.00016438,2]
[351572045,1738630240115,-500.0,0.00016438,2]
[351572046,1738630240124,-507.48053854,0.00016438,2]
[351572047,1738630240133,-371.33137194,0.00016438,2]
[351572048,1738630240142,-500.0,0.00016438,2]
[351572050,1738630240151,-500.0,0.00016438,2]
[351572052,1738630240161,-500.0,0.00016438,2]
[351572054,1738630240170,-500.0,0.00016438,2]
[351572055,1738630240179,-500.0,0.00016438,2]
[351572056,1738630240189,-500.0,0.00016438,2]
[351572057,1738630240202,-500.0,0.00016438,2]
[351572059,1738630240212,-500.0,0.00016438,2]
[351572060,1738630240222,-500.0,0.00016438,2]
[351572061,1738630240231,-888.42,0.00016438,2]
[351572062,1738630240241,-500.0,0.00016438,2]
[351572063,1738630240251,-500.0,0.00016438,2]
[351572064,1738630240260,-500.0,0.00016438,2]
[351572066,1738630240270,-501.53276552,0.00016438,2]
[351572067,1738630240280,-500.0,0.00016438,2]
[351572068,1738630240289,-500.0,0.00016438,2]
[351572069,1738630240298,-500.0,0.00016438,2]
[351572070,1738630240307,-500.0,0.00016438,2]
[351572071,1738630240317,-500.0,0.00016438,2]
[351572072,1738630240326,-576.77403929,0.00016438,2]
[351572073,1738630240335,-500.0,0.00016438,2]
[351572074,1738630240344,-500.0,0.00016438,2]
[351572075,1738630240353,-500.0,0.00016438,2]
[351572076,1738630240362,-201.13883264,0.00016438,2]
[351572077,1738630240372,-500.0,0.00016438,2]
[351572078,1738630240381,-500.0,0.00016438,2]
[351572079,1738630240390,-500.0,0.00016438,2]
[351572080,1738630240399,-500.0,0.00016438,2]
[351572081,1738630240409,-502.7327961,0.00016438,2]
[351572082,1738630240419,-500.0,0.00016438,2]
[351572083,1738630240428,-500.0,0.00016438,2]
[351572084,1738630240437,-500.0,0.00016438,2]
[351572085,1738630240449,-500.0,0.00016438,2]
[351572086,1738630240458,-500.0,0.00016438,2]
[351572087,1738630240468,-500.0,0.00016438,2]
[351572088,1738630240477,-500.0,0.00016438,2]